Workbook

Sheet User input
B2: Multicollinearity + Measurement Error Correction Application
B3: For correcting VIF, standard deviations, path estimates, and t-values in regression-based statistical analysis.
C5: (Based on Goodhue, Lewis, and Thompson, "A Multicollinearity and Measurement Error Statistical Blind Spot: Correcting For Excessive False Positives in Regression and PLS", MIS Quarterly, September 2017)
B7: User Input | H7: Corrected Results
B8: Enter all values to view results. | H8: path | I8: estimate | J8: std dev | K8: t-stat | L8: prob
C9: r12 | D9: 0.6 | H9: b1 | I9: =IF(OR($D$9="",$D$10="",$D$11="",$D$12="",$D$13="",$D$14="",$D$15="",$D$16="",$D$17=""),"",'M+ME Correction'!N16) -> 0.566355698 | J9: =IF(OR($D$9="",$D$10="",$D$11="",$D$12="",$D$13="",$D$14="",$D$15="",$D$16="",$D$17=""),"",'M+ME Correction'!$R$16) -> 0.2465704402 | K9: =IF(OR($D$9="",$D$10="",$D$11="",$D$12="",$D$13="",$D$14="",$D$15="",$D$16="",$D$17=""),"",'M+ME Correction'!S16) -> 2.296932664 | L9: =IF(OR($D$9="",$D$10="",$D$11="",$D$12="",$D$13="",$D$14="",$D$15="",$D$16="",$D$17=""),"",'M+ME Correction'!T16) -> 0.02381883865 | N9: underlying r12 | O9: =IF(OR($D$9="",$D$10="",$D$11="",$D$12="",$D$13="",$D$14="",$D$15="",$D$16="",$D$17=""),"",'M+ME Correction'!N9) -> 0.7071067812
C10: b1 | D10: 0.462 | H10: b2 | I10: =IF(OR($D$9="",$D$10="",$D$11="",$D$12="",$D$13="",$D$14="",$D$15="",$D$16="",$D$17=""),"",'M+ME Correction'!P17) -> 0.2090520908 | J10: =IF(OR($D$9="",$D$10="",$D$11="",$D$12="",$D$13="",$D$14="",$D$15="",$D$16="",$D$17=""),"",'M+ME Correction'!$R$17) -> 0.1350139165 | K10: =IF(OR($D$9="",$D$10="",$D$11="",$D$12="",$D$13="",$D$14="",$D$15="",$D$16="",$D$17=""),"",'M+ME Correction'!S17) -> 1.548374391 | L10: =IF(OR($D$9="",$D$10="",$D$11="",$D$12="",$D$13="",$D$14="",$D$15="",$D$16="",$D$17=""),"",'M+ME Correction'!T17) -> 0.124857203 | N10: combined a | O10: =IF(OR($D$9="",$D$10="",$D$11="",$D$12="",$D$13="",$D$14="",$D$15="",$D$16="",$D$17=""),"",'M+ME Correction'!N10) -> 0.8485281374
C11: b2 | D11: 0.24
C12: t b1 | D12: 2.89
C13: t b2 | D13: 2.9 | H13: Key
C14: a X1 | D14: 0.9 | I14: r12 = | J14: overt correlation, independent variables
C15: a X2 | D15: 0.8 | I15: b1 , b2 = | J15: standardized path coefficients of the two correlated
C16: n | D16: 100 | J16: independent variables
C17: k | D17: 4 | I17: t b1 , t b2 = | J17: t-statistics for the B1 and B2 path coefficients
I18: a X1 , a X2 = | J18: reliabilities for the independent variables. The combined
J19: reliability is: (aX1*aX2)1/2
I20: n = | J20: sample size
I21: k = | J21: # of independent variables in the regression

Sheet M+ME Correction
B3: M+ME Correction
C4: This sheet uses data from 'User input' to correct the VIF, standard deviation, path estimates, and t-values for ksi1 and ksi2.
C7: Data entered by the user from 'User input'
F8: tcalc | G8: tcalc | H8: alpha | I8: alpha
C9: n | D9: b1^ | E9: b2^ | F9: b1^ | G9: b2^ | H9: X1 | I9: X2 | J9: overt r12 | K9: k | M9: underlying r12 | N9: =J10/N10 -> 0.7071067812
C10: ='User input'!D16 -> 100 | D10: ='User input'!D10 -> 0.462 | E10: ='User input'!D11 -> 0.24 | F10: ='User input'!D12 -> 2.89 | G10: ='User input'!D13 -> 2.9 | H10: ='User input'!D14 -> 0.9 | I10: ='User input'!D15 -> 0.8 | J10: ='User input'!D9 -> 0.6 | K10: ='User input'!D17 -> 4 | M10: combined alpha | N10: =(H10*I10)^0.5 -> 0.8485281374
D13: Make VIF Corrections (Determining the StDev of bi^, Using Equations A1-1 and A1-2) | J13: Correct the Path Estimates and Determine the M+ME Corrected Path StDevs (Using Equations A1-17, A1-18 and A1-19)
D14: Overt SD | E14: Overt Var | F14: VIFOvert | G14: VIFCorrect | H14: VIFCorrected Var | I14: VIFCorrected SD | J14: Constant C12 | R14: M+ME Corrected SD | S14: M+ME Corrected t-Stat | T14: M+ME Corrected p-value
F15: 1/(1-r122) | G15: 1/(1- (r122/(a1*a2)) ) | H15: VarOvert* VIFcorrect / VIFOvert | I15: (VarCorrect).5 | J15: (1-a)/ (1-r122) | K15: 1-2C+C2 -C2r122 | L15: (1-C) / (1-2C+C2-C2r122) | M15: (C*r12) / (1-2C+C2-C2r122) | N15: b1= [col L] *b1^-[col M] *b2^ | O15: Var(b1) =[col L]2 * V(b1^) + [col M]2 *V(b2^) | P15: b2= [col L] *b2^-[col M] *b1^ | Q15: Var(b2) =[col L]2 * V(b2^) + [col M]2 *V(b1^)
C16: b1 | D16: =D10/F10 -> 0.1598615917 | E16: =D16*D16 -> 0.0255557285 | F16: =1/(1-J10^2) -> 1.5625 | G16: =1/(1-(J10^2)/(H10*I10)) -> 2 | H16: =E16*G16/F16 -> 0.03271133248 | I16: =H16^0.5 -> 0.1808627449 | N16: =$L$17*D10-$M$17*E10 -> 0.566355698 | O16: =$L$17^2*H16+$M$17^2*H17 -> 0.06079698197 | R16: =O16^0.5 -> 0.2465704402 | S16: =N16/R16 -> 2.296932664 | T16: =TDIST(ABS(S16), (C10-K10-1), 2) -> 0.02381883865
C17: b2 | D17: =E10/G10 -> 0.08275862069 | E17: =D17*D17 -> 0.006848989298 | F17: =1/(1-J10^2) -> 1.5625 | G17: =1/(1-(J10*J10/(H10*I10))) -> 2 | H17: =E17*G17/F17 -> 0.008766706302 | I17: =H17^0.5 -> 0.09363069103 | J17: =(1-POWER(H10*I10,0.5)) / (1-J10^2) -> 0.2366747853 | K17: =1-2*J17+(J17)^2-(J17*J10)^2 -> 0.5625 | L17: =(1-J17)/K17 -> 1.357022604 | M17: =J17*J10/K17 -> 0.2524531043 | P17: =$L$17*E10-$M$17*D10 -> 0.2090520908 | Q17: =$L$17^2*H17+$M$17^2*H16 -> 0.01822875765 | R17: =Q17^0.5 -> 0.1350139165 | S17: =P17/R17 -> 1.548374391 | T17: =TDIST(ABS(S17), (C10-K10-1),2) -> 0.124857203
